[Event "*** Titled Tuesday Blitz"]
[Site "Chess.com"]
[Date "2020.04.14"]
[Round "1"]
[White "want2lose"]
[Black "KarstenHansch"]
[Result "1-0"]
[WhiteElo "2776"]
[BlackElo "2402"]
[TimeControl "180+1"]
[EndTime "10:07:35 PDT"]
[Termination "want2lose won by resignation"]

1. Nf3 {[%clk 0:03:00.9]} 1... c6 {[%clk 0:02:59.8]} 2. g3 {[%clk 0:03:01.2]}
2... g6 {[%clk 0:02:57.1]} 3. Bg2 {[%clk 0:03:01.4]} 3... Bg7 {[%clk 0:02:57.7]}
4. d4 {[%clk 0:03:02.3]} 4... Nf6 {[%clk 0:02:57.8]} 5. O-O {[%clk 0:03:02.8]}
5... O-O {[%clk 0:02:57.6]} 6. c4 {[%clk 0:03:01.7]} 6... d5 {[%clk 0:02:57.6]}
7. cxd5 {[%clk 0:03:02.6]} 7... cxd5 {[%clk 0:02:57.5]} 8. Nc3 {[%clk
0:03:03.5]} 8... Nc6 {[%clk 0:02:57.5]} 9. Ne5 {[%clk 0:03:03.7]} 9... Bf5
{[%clk 0:02:37.6]} 10. Nxc6 {[%clk 0:02:59.5]} 10... bxc6 {[%clk 0:02:36]} 11.
Bf4 {[%clk 0:03:00]} 11... Ne4 {[%clk 0:02:27]} 12. Rc1 {[%clk 0:02:51.3]} 12...
Rc8 {[%clk 0:02:11.4]} 13. b3 {[%clk 0:02:03.4]} 13... Nxc3 {[%clk 0:01:57.4]}
14. Rxc3 {[%clk 0:02:04.3]} 14... Qa5 {[%clk 0:01:57]} 15. Qd2 {[%clk
0:02:00.2]} 15... c5 {[%clk 0:01:12.5]} 16. Rxc5 {[%clk 0:01:58.3]} 16... Rxc5
{[%clk 0:01:00.2]} 17. dxc5 {[%clk 0:01:59.2]} 17... Qxc5 {[%clk 0:01:00.2]} 18.
Qxd5 {[%clk 0:01:27.2]} 18... Qxd5 {[%clk 0:00:54.8]} 19. Bxd5 {[%clk
0:01:28.1]} 19... Rc8 {[%clk 0:00:36]} 20. Bc4 {[%clk 0:01:27.8]} 20... Bd4
{[%clk 0:00:33]} 21. Rd1 {[%clk 0:01:23.7]} 21... e5 {[%clk 0:00:32.4]} 22. Bh6
{[%clk 0:01:15]} 22... Rd8 {[%clk 0:00:17.7]} 23. Kg2 {[%clk 0:01:07.4]} 23...
Be4+ {[%clk 0:00:15.8]} 24. f3 {[%clk 0:01:05.9]} 24... Bc6 {[%clk 0:00:15.6]}
25. Bg5 {[%clk 0:01:02.6]} 25... Rd7 {[%clk 0:00:14.9]} 26. Bf6 {[%clk
0:00:37.4]} 26... Kf8 {[%clk 0:00:13]} 27. b4 {[%clk 0:00:29]} 27... h5 {[%clk
0:00:12]} 28. b5 {[%clk 0:00:28.6]} 28... Bd5 {[%clk 0:00:11]} 29. Bxd5 {[%clk
0:00:28.1]} 29... Rxd5 {[%clk 0:00:11.9]} 30. e3 {[%clk 0:00:28.6]} 30... Rd6
{[%clk 0:00:12.1]} 31. exd4 {[%clk 0:00:28.7]} 31... Rxf6 {[%clk 0:00:12]} 32.
dxe5 {[%clk 0:00:29.1]} 32... Rb6 {[%clk 0:00:12]} 33. Rd5 {[%clk 0:00:28.4]}
33... a6 {[%clk 0:00:11.7]} 34. a4 {[%clk 0:00:28.5]} 34... axb5 {[%clk
0:00:11.7]} 35. axb5 {[%clk 0:00:27.5]} 35... Ke7 {[%clk 0:00:12.6]} 36. f4
{[%clk 0:00:27.4]} 36... Kf8 {[%clk 0:00:13.5]} 37. Kf3 {[%clk 0:00:27.6]} 37...
Ke7 {[%clk 0:00:14.4]} 38. Ke4 {[%clk 0:00:27.8]} 38... Ke6 {[%clk 0:00:14.5]}
39. Rd6+ {[%clk 0:00:24.4]} 39... Rxd6 {[%clk 0:00:14.5]} 40. exd6 {[%clk
0:00:25.3]} 40... Kxd6 {[%clk 0:00:15.4]} 41. Kd4 {[%clk 0:00:22.7]} 41... f6
{[%clk 0:00:14.7]} 42. h4 {[%clk 0:00:22.1]} 42... Ke6 {[%clk 0:00:12.9]} 43.
Kc5 {[%clk 0:00:21.9]} 43... Kf5 {[%clk 0:00:13.2]} 44. b6 {[%clk 0:00:22]}
44... Kg4 {[%clk 0:00:14.1]} 45. b7 {[%clk 0:00:22.5]} 45... Kxg3 {[%clk
0:00:15]} 46. b8=Q {[%clk 0:00:23]} 46... Kxh4 {[%clk 0:00:15.9]} 47. Kd4 {[%clk
0:00:21.8]} 47... g5 {[%clk 0:00:16.8]} 48. fxg5 {[%clk 0:00:21.5]} 48... fxg5
{[%clk 0:00:17.7]} 49. Ke3 {[%clk 0:00:21.7]} 49... Kg4 {[%clk 0:00:18.6]} 50.
Qh2 {[%clk 0:00:20.3]} 1-0

[Event "*** Titled Tuesday Blitz"]
[Site "Chess.com"]
[Date "2020.04.14"]
[Round "1"]
[White "SantoBlue"]
[Black "MartinMatthiesen"]
[Result "1-0"]
[WhiteElo "2804"]
[BlackElo "2422"]
[TimeControl "180+1"]
[EndTime "10:07:36 PDT"]
[Termination "SantoBlue won by checkmate"]

1. e4 {[%clk 0:02:59.8]} 1... e5 {[%clk 0:02:59.5]} 2. Nf3 {[%clk 0:02:58.7]}
2... Nc6 {[%clk 0:02:59.4]} 3. Bb5 {[%clk 0:02:59.4]} 3... a6 {[%clk 0:02:59.3]}
4. Ba4 {[%clk 0:02:58.6]} 4... Nf6 {[%clk 0:02:59.3]} 5. O-O {[%clk 0:02:55.7]}
5... Be7 {[%clk 0:02:59]} 6. Bxc6 {[%clk 0:02:55.8]} 6... dxc6 {[%clk
0:02:58.6]} 7. d3 {[%clk 0:02:55.3]} 7... Nd7 {[%clk 0:02:57]} 8. b3 {[%clk
0:02:55.3]} 8... O-O {[%clk 0:02:56.7]} 9. Bb2 {[%clk 0:02:55.7]} 9... f6 {[%clk
0:02:56.3]} 10. Nbd2 {[%clk 0:02:55.9]} 10... c5 {[%clk 0:02:53.4]} 11. h3
{[%clk 0:02:56]} 11... Nb8 {[%clk 0:02:52.8]} 12. Nh2 {[%clk 0:02:55.1]} 12...
Nc6 {[%clk 0:02:52.4]} 13. Ng4 {[%clk 0:02:55.3]} 13... Nd4 {[%clk 0:02:46.9]}
14. Ne3 {[%clk 0:02:54.7]} 14... Be6 {[%clk 0:02:42]} 15. Ndc4 {[%clk
0:02:26.4]} 15... Qd7 {[%clk 0:02:37.7]} 16. Kh2 {[%clk 0:02:18.1]} 16... Rad8
{[%clk 0:02:28.4]} 17. f3 {[%clk 0:02:08.6]} 17... b6 {[%clk 0:02:24.5]} 18. Qe1
{[%clk 0:02:05.1]} 18... b5 {[%clk 0:02:06.4]} 19. Nd2 {[%clk 0:02:04.8]} 19...
Nxc2 {[%clk 0:02:06.3]} 20. Nxc2 {[%clk 0:02:03.6]} 20... Qxd3 {[%clk
0:02:06.9]} 21. Ne3 {[%clk 0:01:44.7]} 21... Qxd2 {[%clk 0:02:06.2]} 22. Nd5
{[%clk 0:01:45.1]} 22... Qxb2 {[%clk 0:01:39.6]} 23. Nxe7+ {[%clk 0:01:45.1]}
23... Kh8 {[%clk 0:01:35]} 24. Rf2 {[%clk 0:01:34.7]} 24... Qa3 {[%clk
0:01:29.7]} 25. Rc2 {[%clk 0:01:34.7]} 25... c4 {[%clk 0:01:21.2]} 26. Nf5
{[%clk 0:01:27.3]} 26... cxb3 {[%clk 0:01:17.6]} 27. axb3 {[%clk 0:01:26.4]}
27... Qxb3 {[%clk 0:01:16.7]} 28. Rc3 {[%clk 0:01:18.3]} 28... Qb4 {[%clk
0:01:07]} 29. Nxg7 {[%clk 0:01:15.3]} 29... Bc4 {[%clk 0:00:58.4]} 30. Nf5
{[%clk 0:01:03.7]} 30... Rg8 {[%clk 0:00:45.5]} 31. Qh4 {[%clk 0:00:59.5]} 31...
Rg6 {[%clk 0:00:44.9]} 32. Rc2 {[%clk 0:00:56.9]} 32... Rdg8 {[%clk 0:00:39]}
33. Rxa6 {[%clk 0:00:56.7]} 33... Qf8 {[%clk 0:00:22]} 34. g4 {[%clk 0:00:48.7]}
34... Qd8 {[%clk 0:00:17.9]} 35. Qf2 {[%clk 0:00:43.4]} 35... Qd3 {[%clk
0:00:17]} 36. Rd2 {[%clk 0:00:40.3]} 36... Qc3 {[%clk 0:00:16.8]} 37. Ne7 {[%clk
0:00:39.8]} 37... b4 {[%clk 0:00:15.8]} 38. Nxg6+ {[%clk 0:00:39.5]} 38... hxg6
{[%clk 0:00:14.6]} 39. Qh4+ {[%clk 0:00:39.2]} 39... Kg7 {[%clk 0:00:14.3]} 40.
Rd7+ {[%clk 0:00:39.8]} 40... Bf7 {[%clk 0:00:12.9]} 41. Qxf6+ {[%clk 0:00:39]}
41... Kh6 {[%clk 0:00:12.7]} 42. Qh4+ {[%clk 0:00:33.3]} 42... Kg7 {[%clk
0:00:12.3]} 43. Rxg6+ {[%clk 0:00:25.2]} 43... Kxg6 {[%clk 0:00:10.9]} 44. Qh5+
{[%clk 0:00:25.6]} 44... Kf6 {[%clk 0:00:11]} 45. Qf5+ {[%clk 0:00:24.7]} 45...
Kg7 {[%clk 0:00:10.7]} 46. Rxf7+ {[%clk 0:00:25.1]} 46... Kh8 {[%clk 0:00:10.2]}
47. Rh7# {[%clk 0:00:26]} 1-0

[Event "*** Titled Tuesday Blitz"]
[Site "Chess.com"]
[Date "2020.04.14"]
[Round "1"]
[White "vovkcoach"]
[Black "2nd_life"]
[Result "1-0"]
[WhiteElo "2769"]
[BlackElo "2399"]
[TimeControl "180+1"]
[EndTime "10:07:36 PDT"]
[Termination "vovkcoach won on time"]

1. e4 {[%clk 0:02:59.9]} 1... e5 {[%clk 0:02:57]} 2. Nf3 {[%clk 0:02:58.4]} 2...
Nc6 {[%clk 0:02:57]} 3. Bb5 {[%clk 0:02:57]} 3... a6 {[%clk 0:02:57.1]} 4. Ba4
{[%clk 0:02:55.6]} 4... Nf6 {[%clk 0:02:57.2]} 5. d3 {[%clk 0:02:55]} 5... d6
{[%clk 0:02:54.9]} 6. c4 {[%clk 0:02:53.5]} 6... g6 {[%clk 0:02:50.3]} 7. Nc3
{[%clk 0:02:50.9]} 7... Bg7 {[%clk 0:02:48.9]} 8. h3 {[%clk 0:02:51.3]} 8... O-O
{[%clk 0:02:47.6]} 9. O-O {[%clk 0:02:51.7]} 9... Nd4 {[%clk 0:02:42.5]} 10.
Nxd4 {[%clk 0:02:49.8]} 10... exd4 {[%clk 0:02:42.1]} 11. Ne2 {[%clk 0:02:48.1]}
11... c5 {[%clk 0:02:37.9]} 12. Bg5 {[%clk 0:02:46.4]} 12... h6 {[%clk
0:02:33.5]} 13. Bh4 {[%clk 0:02:46.8]} 13... Rb8 {[%clk 0:02:06.2]} 14. b4
{[%clk 0:02:23.5]} 14... g5 {[%clk 0:01:36.2]} 15. Bg3 {[%clk 0:02:23]} 15...
Nh5 {[%clk 0:01:35.1]} 16. Bh2 {[%clk 0:02:18.3]} 16... Be5 {[%clk 0:01:24.4]}
17. Nxd4 {[%clk 0:01:59.3]} 17... Nf4 {[%clk 0:01:11.6]} 18. Nf3 {[%clk
0:01:29.6]} 18... Bxa1 {[%clk 0:00:40.7]} 19. Qxa1 {[%clk 0:01:29.2]} 19... b5
{[%clk 0:00:40.8]} 20. cxb5 {[%clk 0:01:25.4]} 20... axb5 {[%clk 0:00:40.8]} 21.
Bb3 {[%clk 0:01:09]} 21... Nxd3 {[%clk 0:00:32.6]} 22. bxc5 {[%clk 0:01:05.6]}
22... Nxc5 {[%clk 0:00:32.2]} 23. e5 {[%clk 0:00:54.9]} 23... Bb7 {[%clk
0:00:21.2]} 24. Nd4 {[%clk 0:00:51.2]} 24... Nxb3 {[%clk 0:00:20.4]} 25. axb3
{[%clk 0:00:50.1]} 25... dxe5 {[%clk 0:00:20.7]} 26. Nf5 {[%clk 0:00:45.7]}
26... Kh7 {[%clk 0:00:08.3]} 27. Qxe5 {[%clk 0:00:42.5]} 27... f6 {[%clk
0:00:06.2]} 28. Qxb5 {[%clk 0:00:24.3]} 28... Qd5 {[%clk 0:00:04.8]} 29. Qxd5
{[%clk 0:00:24.3]} 29... Bxd5 {[%clk 0:00:05.7]} 30. Bxb8 {[%clk 0:00:24.5]}
30... Rxb8 {[%clk 0:00:05.1]} 31. Rd1 {[%clk 0:00:23.3]} 31... Bxb3 {[%clk
0:00:05.2]} 32. Rd7+ {[%clk 0:00:23]} 32... Kg6 {[%clk 0:00:04.5]} 33. g4 {[%clk
0:00:23.4]} 33... Bf7 {[%clk 0:00:04.6]} 34. Ne7+ {[%clk 0:00:20.8]} 34... Kg7
{[%clk 0:00:04.8]} 35. Nc6 {[%clk 0:00:19.1]} 35... Kg8 {[%clk 0:00:01.9]} 36.
Nxb8 {[%clk 0:00:18.2]} 1-0

[Event "*** Titled Tuesday Blitz"]
[Site "Chess.com"]
[Date "2020.04.14"]
[Round "1"]
[White "Mikhail_Biryukov"]
[Black "secretsuperstar7"]
[Result "1-0"]
[WhiteElo "2557"]
[BlackElo "2146"]
[TimeControl "180+1"]
[EndTime "10:07:37 PDT"]
[Termination "Mikhail_Biryukov won on time"]

1. e4 {[%clk 0:03:00.9]} 1... c5 {[%clk 0:02:59.4]} 2. Nf3 {[%clk 0:02:56.6]}
2... d6 {[%clk 0:02:59]} 3. c3 {[%clk 0:02:53.4]} 3... Nf6 {[%clk 0:02:58]} 4.
Be2 {[%clk 0:02:53.6]} 4... Bd7 {[%clk 0:02:52.4]} 5. d3 {[%clk 0:02:53.2]} 5...
g6 {[%clk 0:02:51.2]} 6. O-O {[%clk 0:02:52.9]} 6... Bg7 {[%clk 0:02:51.4]} 7.
Nbd2 {[%clk 0:02:53.1]} 7... O-O {[%clk 0:02:51.4]} 8. d4 {[%clk 0:02:53.3]}
8... cxd4 {[%clk 0:02:45.4]} 9. cxd4 {[%clk 0:02:54.2]} 9... Nc6 {[%clk
0:02:45.6]} 10. d5 {[%clk 0:02:50.4]} 10... Ne5 {[%clk 0:02:41.2]} 11. Nxe5
{[%clk 0:02:38.9]} 11... dxe5 {[%clk 0:02:40.5]} 12. Bf3 {[%clk 0:02:39.1]}
12... e6 {[%clk 0:02:32.3]} 13. Re1 {[%clk 0:02:23.2]} 13... Re8 {[%clk
0:02:17.3]} 14. dxe6 {[%clk 0:02:12.7]} 14... Bxe6 {[%clk 0:02:16.8]} 15. b3
{[%clk 0:02:12.4]} 15... Nd7 {[%clk 0:02:01.7]} 16. Bb2 {[%clk 0:02:07.9]} 16...
Nc5 {[%clk 0:02:00.7]} 17. Nf1 {[%clk 0:01:56.3]} 17... Nd3 {[%clk 0:01:45.8]}
18. Re2 {[%clk 0:01:56.5]} 18... Nxb2 {[%clk 0:01:34.5]} 19. Rxb2 {[%clk
0:01:57.4]} 19... Qb6 {[%clk 0:01:28.6]} 20. Rc2 {[%clk 0:01:44.6]} 20... Rad8
{[%clk 0:01:27]} 21. Qe2 {[%clk 0:01:44.7]} 21... f5 {[%clk 0:01:23.2]} 22. Ne3
{[%clk 0:01:37.1]} 22... f4 {[%clk 0:01:14.7]} 23. Nc4 {[%clk 0:01:35.2]} 23...
Qa6 {[%clk 0:01:12.6]} 24. Bg4 {[%clk 0:01:29.6]} 24... Rd4 {[%clk 0:01:08.5]}
25. Bxe6+ {[%clk 0:01:27.9]} 25... Qxe6 {[%clk 0:01:07.8]} 26. a4 {[%clk
0:01:22.7]} 26... Rf8 {[%clk 0:00:59.3]} 27. Rc3 {[%clk 0:01:18.6]} 27... a6
{[%clk 0:00:54.4]} 28. Rac1 {[%clk 0:01:16.4]} 28... b5 {[%clk 0:00:51.5]} 29.
axb5 {[%clk 0:01:16.1]} 29... axb5 {[%clk 0:00:52.2]} 30. Nd2 {[%clk 0:01:16.6]}
30... g5 {[%clk 0:00:45.6]} 31. Nf3 {[%clk 0:01:14.8]} 31... Rd6 {[%clk
0:00:43]} 32. Nxg5 {[%clk 0:01:11.9]} 32... Qg6 {[%clk 0:00:41.6]} 33. Nf3
{[%clk 0:01:10.8]} 33... Rfd8 {[%clk 0:00:38.6]} 34. h3 {[%clk 0:01:08.2]} 34...
h5 {[%clk 0:00:37.8]} 35. Rc8 {[%clk 0:01:04.9]} 35... Kh7 {[%clk 0:00:35.7]}
36. Rxd8 {[%clk 0:01:04.5]} 36... Rxd8 {[%clk 0:00:35.3]} 37. h4 {[%clk
0:01:04]} 37... Bf6 {[%clk 0:00:33.4]} 38. Rc7+ {[%clk 0:01:01.5]} 38... Kh6
{[%clk 0:00:33]} 39. Rc5 {[%clk 0:00:56.6]} 39... Qg7 {[%clk 0:00:30.4]} 40. Rc6
{[%clk 0:00:52]} 40... Kh7 {[%clk 0:00:28.5]} 41. Qc2 {[%clk 0:00:44.7]} 41...
Rg8 {[%clk 0:00:27.9]} 42. Rc7 {[%clk 0:00:44.7]} 42... Be7 {[%clk 0:00:25.9]}
43. Ng5+ {[%clk 0:00:44.7]} 43... Kh8 {[%clk 0:00:21.9]} 44. Qe2 {[%clk
0:00:38.2]} 44... Rd8 {[%clk 0:00:02.2]} 45. Qxh5+ {[%clk 0:00:36.4]} 45... Kg8
{[%clk 0:00:02.1]} 46. Rxe7 {[%clk 0:00:31.2]} 46... Rd1+ {[%clk 0:00:03]} 47.
Qxd1 {[%clk 0:00:30.7]} 1-0

[Event "*** Titled Tuesday Blitz"]
[Site "Chess.com"]
[Date "2020.04.14"]
[Round "1"]
[White "GeorgMeier"]
[Black "Crazy_girl99"]
[Result "1-0"]
[WhiteElo "3056"]
[BlackElo "2504"]
[TimeControl "180+1"]
[EndTime "10:07:39 PDT"]
[Termination "GeorgMeier won by resignation"]

1. Nf3 {[%clk 0:03:00.9]} 1... d5 {[%clk 0:02:59.1]} 2. g3 {[%clk 0:02:58]} 2...
Nf6 {[%clk 0:02:58.8]} 3. Bg2 {[%clk 0:02:58.3]} 3... g6 {[%clk 0:02:59]} 4. d4
{[%clk 0:02:57.3]} 4... Bg7 {[%clk 0:02:59.4]} 5. c4 {[%clk 0:02:56.9]} 5...
dxc4 {[%clk 0:02:52]} 6. Na3 {[%clk 0:02:53.6]} 6... c3 {[%clk 0:02:42]} 7. bxc3
{[%clk 0:02:46.9]} 7... c5 {[%clk 0:02:41.6]} 8. O-O {[%clk 0:02:45.8]} 8... O-O
{[%clk 0:02:40.3]} 9. Bb2 {[%clk 0:02:44.3]} 9... Nc6 {[%clk 0:02:10.6]} 10. Re1
{[%clk 0:02:40.3]} 10... Qb6 {[%clk 0:01:59.9]} 11. Nc4 {[%clk 0:02:30.1]} 11...
Qb5 {[%clk 0:01:58.4]} 12. Qb3 {[%clk 0:02:22]} 12... Qa6 {[%clk 0:01:44.1]} 13.
e4 {[%clk 0:02:11.2]} 13... b5 {[%clk 0:01:36]} 14. Ncd2 {[%clk 0:01:56.2]}
14... Rd8 {[%clk 0:01:27]} 15. d5 {[%clk 0:01:52.4]} 15... Na5 {[%clk
0:01:22.2]} 16. Qa3 {[%clk 0:01:52.1]} 16... Nd7 {[%clk 0:01:19.8]} 17. Rab1
{[%clk 0:01:15.2]} 17... Rb8 {[%clk 0:01:19.1]} 18. Bf1 {[%clk 0:01:10.7]} 18...
Nb6 {[%clk 0:01:14.9]} 19. Qxc5 {[%clk 0:01:05.7]} 19... Bd7 {[%clk 0:00:24.7]}
20. Qxe7 {[%clk 0:00:54.5]} 20... Na4 {[%clk 0:00:23.6]} 21. Ne5 {[%clk
0:00:41.4]} 21... Be8 {[%clk 0:00:20.6]} 22. Ba1 {[%clk 0:00:37]} 22... Bf6
{[%clk 0:00:19.6]} 23. Qb4 {[%clk 0:00:26.7]} 23... Bxe5 {[%clk 0:00:18.6]} 24.
Qxa4 {[%clk 0:00:26.9]} 24... Qb6 {[%clk 0:00:15.6]} 25. Qd1 {[%clk 0:00:22.9]}
25... a6 {[%clk 0:00:15]} 26. Kg2 {[%clk 0:00:22.5]} 26... Qc7 {[%clk
0:00:15.2]} 27. Rc1 {[%clk 0:00:21.5]} 27... Rbc8 {[%clk 0:00:14.8]} 28. f4
{[%clk 0:00:21.4]} 28... Bg7 {[%clk 0:00:14.9]} 29. Qf3 {[%clk 0:00:17.2]} 29...
Nb7 {[%clk 0:00:14.8]} 30. c4 {[%clk 0:00:16.2]} 30... b4 {[%clk 0:00:13.6]} 31.
Bxg7 {[%clk 0:00:13.8]} 31... Kxg7 {[%clk 0:00:14.5]} 32. e5 {[%clk 0:00:13.7]}
32... Nc5 {[%clk 0:00:14.6]} 33. Ne4 {[%clk 0:00:13.9]} 33... Nxe4 {[%clk
0:00:13.9]} 34. Qxe4 {[%clk 0:00:14.8]} 34... Qc5 {[%clk 0:00:14.3]} 35. Qe3
{[%clk 0:00:14.1]} 35... a5 {[%clk 0:00:14.5]} 36. Qxc5 {[%clk 0:00:13.6]} 36...
Rxc5 {[%clk 0:00:15.4]} 37. Kf2 {[%clk 0:00:14]} 37... Rb8 {[%clk 0:00:15.5]}
38. Ke3 {[%clk 0:00:14]} 38... a4 {[%clk 0:00:15.9]} 39. Kd4 {[%clk 0:00:14.4]}
39... Rcc8 {[%clk 0:00:16]} 40. c5 {[%clk 0:00:15]} 40... b3 {[%clk 0:00:16.5]}
41. axb3 {[%clk 0:00:15.9]} 41... axb3 {[%clk 0:00:16.9]} 42. c6 {[%clk
0:00:16.5]} 42... Rd8 {[%clk 0:00:16.8]} 43. Kc5 {[%clk 0:00:16.3]} 43... Rbc8
{[%clk 0:00:16.4]} 44. Rb1 {[%clk 0:00:16.2]} 44... Ra8 {[%clk 0:00:15.4]} 45.
Rxb3 {[%clk 0:00:16.1]} 45... Ra5+ {[%clk 0:00:16]} 46. Rb5 {[%clk 0:00:16.4]}
46... Ra2 {[%clk 0:00:16]} 47. Bc4 {[%clk 0:00:16.6]} 47... Rc2 {[%clk
0:00:16.1]} 48. Reb1 {[%clk 0:00:16.6]} 48... f6 {[%clk 0:00:13]} 49. Rb8 {[%clk
0:00:16.3]} 49... Rxb8 {[%clk 0:00:11.6]} 50. Rxb8 {[%clk 0:00:17.2]} 50... Bf7
{[%clk 0:00:12.2]} 51. c7 {[%clk 0:00:16.3]} 1-0

[Event "*** Titled Tuesday Blitz"]
[Site "Chess.com"]
[Date "2020.04.14"]
[Round "1"]
[White "amintabatabaei"]
[Black "Lupul_Cenusiu"]
[Result "0-1"]
[WhiteElo "2831"]
[BlackElo "2466"]
[TimeControl "180+1"]
[EndTime "10:07:39 PDT"]
[Termination "Lupul_Cenusiu won on time"]

1. e4 {[%clk 0:03:00.6]} 1... c5 {[%clk 0:02:58.6]} 2. Nf3 {[%clk 0:03:00.7]}
2... e6 {[%clk 0:02:58.6]} 3. d4 {[%clk 0:02:59.7]} 3... cxd4 {[%clk 0:02:58.7]}
4. Nxd4 {[%clk 0:03:00.6]} 4... a6 {[%clk 0:02:59]} 5. Bd3 {[%clk 0:03:00.4]}
5... d6 {[%clk 0:02:58.1]} 6. O-O {[%clk 0:03:00.3]} 6... Nf6 {[%clk 0:02:57.6]}
7. c4 {[%clk 0:03:00.6]} 7... Be7 {[%clk 0:02:56.4]} 8. Nc3 {[%clk 0:03:01]}
8... h5 {[%clk 0:02:55.9]} 9. h3 {[%clk 0:02:49.3]} 9... Nbd7 {[%clk 0:02:51.1]}
10. Be3 {[%clk 0:02:48.8]} 10... Ne5 {[%clk 0:02:48.6]} 11. Be2 {[%clk
0:02:46.2]} 11... Qc7 {[%clk 0:02:42.3]} 12. Rc1 {[%clk 0:02:45.3]} 12... b6
{[%clk 0:02:41.9]} 13. Kh1 {[%clk 0:02:18.1]} 13... Ned7 {[%clk 0:02:30.9]} 14.
f4 {[%clk 0:01:53.5]} 14... Nc5 {[%clk 0:02:28.1]} 15. Bf3 {[%clk 0:01:50.5]}
15... Bb7 {[%clk 0:02:27.6]} 16. Qc2 {[%clk 0:01:34.2]} 16... Rc8 {[%clk
0:02:10.2]} 17. b4 {[%clk 0:01:22.3]} 17... Ncd7 {[%clk 0:02:09.4]} 18. Be2
{[%clk 0:01:22.6]} 18... g6 {[%clk 0:02:00.7]} 19. Nf3 {[%clk 0:01:15.5]} 19...
Qb8 {[%clk 0:01:55.1]} 20. a4 {[%clk 0:01:04.8]} 20... Qa8 {[%clk 0:01:39.3]}
21. Ng5 {[%clk 0:01:04.6]} 21... h4 {[%clk 0:01:02]} 22. Bd4 {[%clk 0:00:53.1]}
22... e5 {[%clk 0:00:59.2]} 23. Be3 {[%clk 0:00:32.9]} 23... exf4 {[%clk
0:00:50]} 24. Bxf4 {[%clk 0:00:33.3]} 24... Ne5 {[%clk 0:00:48.4]} 25. Qb3
{[%clk 0:00:18.4]} 25... O-O {[%clk 0:00:43]} 26. Nd5 {[%clk 0:00:14.5]} 26...
Bxd5 {[%clk 0:00:39.3]} 27. exd5 {[%clk 0:00:13.5]} 27... b5 {[%clk 0:00:28.9]}
28. Bxe5 {[%clk 0:00:12.7]} 28... dxe5 {[%clk 0:00:27.9]} 29. d6 {[%clk
0:00:13.6]} 29... Bd8 {[%clk 0:00:20.5]} 30. c5 {[%clk 0:00:14.1]} 30... bxa4
{[%clk 0:00:20]} 31. Qa2 {[%clk 0:00:10.4]} 31... Ne4 {[%clk 0:00:16.2]} 32.
Nxe4 {[%clk 0:00:08.3]} 32... Qxe4 {[%clk 0:00:15.8]} 33. Bxa6 {[%clk
0:00:07.2]} 33... Rb8 {[%clk 0:00:15.2]} 34. Bc4 {[%clk 0:00:04.8]} 34... Kg7
{[%clk 0:00:13.7]} 35. Bxf7 {[%clk 0:00:04.3]} 35... Bg5 {[%clk 0:00:13.1]} 36.
Bd5 {[%clk 0:00:03.9]} 36... Qd4 {[%clk 0:00:12.4]} 37. Rfd1 {[%clk 0:00:02.5]}
37... Qxb4 {[%clk 0:00:11.4]} 38. Rc2 {[%clk 0:00:02.2]} 38... Qf4 {[%clk
0:00:10.6]} 39. Re2 {[%clk 0:00:01.7]} 39... Qg3 {[%clk 0:00:09.2]} 0-1

[Event "*** Titled Tuesday Blitz"]
[Site "Chess.com"]
[Date "2020.04.14"]
[Round "1"]
[White "CroissantNeuf"]
[Black "abhidabhi"]
[Result "1/2-1/2"]
[WhiteElo "2401"]
[BlackElo "2743"]
[TimeControl "180+1"]
[EndTime "10:07:39 PDT"]
[Termination "Game drawn by repetition"]

1. Nf3 {[%clk 0:03:00.9]} 1... Nf6 {[%clk 0:02:59.8]} 2. g3 {[%clk 0:02:59.3]}
2... g6 {[%clk 0:02:59.8]} 3. b3 {[%clk 0:02:58.6]} 3... Bg7 {[%clk 0:02:59.1]}
4. Bb2 {[%clk 0:02:58.9]} 4... O-O {[%clk 0:02:59.4]} 5. Bg2 {[%clk 0:02:59.5]}
5... d5 {[%clk 0:02:59.3]} 6. c4 {[%clk 0:02:59.2]} 6... c6 {[%clk 0:02:58.9]}
7. O-O {[%clk 0:02:58.8]} 7... Re8 {[%clk 0:02:59.1]} 8. d4 {[%clk 0:02:50.5]}
8... Bf5 {[%clk 0:02:58.3]} 9. Nbd2 {[%clk 0:02:49.7]} 9... a5 {[%clk
0:02:58.1]} 10. a3 {[%clk 0:02:41.8]} 10... Ne4 {[%clk 0:02:54]} 11. e3 {[%clk
0:02:37]} 11... a4 {[%clk 0:02:48.5]} 12. cxd5 {[%clk 0:02:27.1]} 12... cxd5
{[%clk 0:02:47.9]} 13. Nxe4 {[%clk 0:02:11.8]} 13... Bxe4 {[%clk 0:02:47]} 14.
bxa4 {[%clk 0:02:00.5]} 14... Nd7 {[%clk 0:02:44.5]} 15. Qb3 {[%clk 0:01:56.2]}
15... Qb6 {[%clk 0:02:36.7]} 16. Qxb6 {[%clk 0:01:42.5]} 16... Nxb6 {[%clk
0:02:37.6]} 17. Bc3 {[%clk 0:01:38.4]} 17... Rxa4 {[%clk 0:02:23.1]} 18. Nd2
{[%clk 0:01:27.9]} 18... Bxg2 {[%clk 0:02:20.7]} 19. Kxg2 {[%clk 0:01:28.8]}
19... Nc4 {[%clk 0:02:06.6]} 20. Rfb1 {[%clk 0:01:16.2]} 20... Rb8 {[%clk
0:01:54.1]} 21. Rb5 {[%clk 0:01:00.6]} 21... e6 {[%clk 0:01:33.2]} 22. Nxc4
{[%clk 0:00:52.4]} 22... dxc4 {[%clk 0:01:06.2]} 23. Bb4 {[%clk 0:00:43.9]}
23... Bf8 {[%clk 0:01:05.6]} 24. Rc1 {[%clk 0:00:37.3]} 24... Bxb4 {[%clk
0:01:02.9]} 25. axb4 {[%clk 0:00:33.5]} 25... Rc8 {[%clk 0:01:00.9]} 26. Rxb7
{[%clk 0:00:33]} 26... c3 {[%clk 0:00:54.3]} 27. Rb5 {[%clk 0:00:31.3]} 27...
Rc4 {[%clk 0:00:47.2]} 28. Rc5 {[%clk 0:00:28.9]} 28... Raxb4 {[%clk 0:00:46.7]}
29. Rxc3 {[%clk 0:00:28.2]} 29... Rxc3 {[%clk 0:00:47.1]} 30. Rxc3 {[%clk
0:00:28.2]} 30... h5 {[%clk 0:00:47.7]} 31. h4 {[%clk 0:00:27.7]} 31... Rb2
{[%clk 0:00:47.8]} 32. Kf3 {[%clk 0:00:28.1]} 32... Rd2 {[%clk 0:00:48]} 33. Rc7
{[%clk 0:00:27.3]} 33... Kg7 {[%clk 0:00:48.1]} 34. Rd7 {[%clk 0:00:27.4]} 34...
Kf6 {[%clk 0:00:48.1]} 35. e4 {[%clk 0:00:27]} 35... Ra2 {[%clk 0:00:44.2]} 36.
e5+ {[%clk 0:00:24.1]} 36... Kg7 {[%clk 0:00:44.1]} 37. d5 {[%clk 0:00:24.3]}
37... exd5 {[%clk 0:00:34.7]} 38. e6 {[%clk 0:00:23.9]} 38... Kf6 {[%clk
0:00:30.7]} 39. exf7 {[%clk 0:00:22.2]} 39... Kg7 {[%clk 0:00:30.7]} 40. Ke3
{[%clk 0:00:21.5]} 40... Rb2 {[%clk 0:00:29.7]} 41. f3 {[%clk 0:00:20.9]} 41...
Rb4 {[%clk 0:00:28.5]} 42. Rxd5 {[%clk 0:00:13.9]} 42... Kxf7 {[%clk 0:00:28.4]}
43. Rd6 {[%clk 0:00:14.5]} 43... Ra4 {[%clk 0:00:27.6]} 44. Rc6 {[%clk
0:00:14.5]} 44... Rb4 {[%clk 0:00:27.6]} 45. Rd6 {[%clk 0:00:14.5]} 45... Rc4
{[%clk 0:00:27.7]} 46. Rd5 {[%clk 0:00:14.1]} 46... Ke6 {[%clk 0:00:27.1]} 47.
Ra5 {[%clk 0:00:14.1]} 47... Kf6 {[%clk 0:00:26.9]} 48. Ra6+ {[%clk 0:00:13.3]}
48... Kg7 {[%clk 0:00:27.2]} 49. Ra7+ {[%clk 0:00:13.2]} 49... Kf6 {[%clk
0:00:26.8]} 50. Ra6+ {[%clk 0:00:13.7]} 50... Kg7 {[%clk 0:00:26.6]} 51. Ra7+
{[%clk 0:00:14.3]} 51... Kf6 {[%clk 0:00:26.9]} 52. Ra6+ {[%clk 0:00:15]}
1/2-1/2